bitfinex/quotes_SOLUSD_20250310
["timestamp","ask_amount","ask_price","bid_price","bid_amount"]
[1741621249066,2.283e-05,123.59,123.58,8.0919]
[1741621249854,2.283e-05,123.59,123.57,0.34732314]
[1741621250147,2.283e-05,123.59,123.57,0.063]
[1741621250742,20.00002283,123.59,123.57,0.063]
[1741621251352,2.283e-05,123.59,123.57,0.063]
[1741621252050,3.844e-05,123.61,123.6,0.28432314]
[1741621252246,1.458e-05,123.62,123.61,0.28432314]
[1741621252863,1.458e-05,123.62,123.61,27.023872]
[1741621253748,1.458e-05,123.62,123.58,8.0919]
[1741621253950,1.458e-05,123.62,123.59,0.28432314]
[1741621254330,1.458e-05,123.62,123.59,18.933972]
[1741621254535,1.458e-05,123.62,123.59,0.28432314]
[1741621254957,1.458e-05,123.62,123.58,0.14216157]
[1741621255259,1.458e-05,123.62,123.6,0.28432314]
[1741621255450,1.458e-05,123.62,123.6,18.933972]
[1741621257154,1.458e-05,123.62,123.61,8.37422314]
[1741621258744,1.458e-05,123.62,123.61,27.023872]
[1741621259263,1.458e-05,123.62,123.61,0.28432314]
[1741621259659,1.458e-05,123.62,123.61,8.37422314]
[1741621260464,0.0050484,123.64,123.62,0.28432314]
[1741621260774,0.17731863,123.65,123.64,18.933972]
[1741621261069,0.17731863,123.65,123.58,1.21284262]
[1741621261267,0.17731863,123.65,123.6,18.933972]
[1741621261268,6.81671863,123.65,123.6,18.933972]
[1741621261645,6.81671863,123.65,123.6,0.28432314]
[1741621261845,14.90401863,123.65,123.57,0.063]
[1741621262064,1.977,123.61,123.57,0.063]
[1741621262459,1.977,123.61,123.56,0.063]
[1741621262460,6.2211,123.6,123.56,0.063]
[1741621262866,6.2211,123.6,123.55,0.03]
[1741621262867,99.74964886,123.59,123.55,0.03]
[1741621263775,28.12397486,123.6,123.54,0.063]
[1741621264149,20.03327486,123.6,123.54,0.063]
[1741621264351,20.03327486,123.6,123.54,0.20516157]
[1741621264572,20.03327486,123.6,123.54,18.85481043]
[1741621264783,28.12387486,123.6,123.54,18.85481043]
[1741621264956,20.03327486,123.6,123.54,0.063]
[1741621265153,6.2211,123.6,123.55,0.03]
[1741621265350,6.2841,123.6,123.55,0.03]
[1741621265555,0.063,123.6,123.55,0.03]
[1741621265980,0.063,123.6,123.55,0.17216157]
[1741621266289,0.063,123.6,123.58,0.28432314]
[1741621266754,0.063,123.6,123.56,0.28432314]
[1741621267169,0.063,123.6,123.58,18.933972]
[1741621267549,0.063,123.6,123.58,20.14726489]
[1741621267768,7.662e-05,123.59,123.58,20.14726489]
[1741621267971,0.09232113,123.61,123.6,38.933972]
[1741621268166,13.87211094,123.64,123.63,20.28432314]
[1741621268364,0.30824632,123.66,123.64,38.933972]
[1741621268759,0.15184906,123.65,123.62,0.28432314]
[1741621269076,0.15184906,123.65,123.62,8.37322314]
[1741621269372,0.15184906,123.65,123.62,0.14216157]
[1741621269682,0.15184906,123.65,123.57,10.98]
[1741621269853,0.15184906,123.65,123.59,0.28432314]
[1741621270048,0.15184906,123.65,123.59,18.933972]
[1741621270279,8.23934906,123.65,123.59,18.933972]
[1741621270467,14.80694906,123.65,123.59,18.933972]
[1741621270663,6.71944906,123.65,123.59,18.933972]
[1741621271289,3.733,123.69,123.68,0.28432314]
[1741621271576,3.733,123.69,123.68,18.933972]
[1741621272292,3.733,123.69,123.65,18.933972]
[1741621272459,3.733,123.69,123.65,0.28432314]
[1741621272793,3.733,123.69,123.68,38.933972]
[1741621272956,0.063,123.72,123.68,40.14616852]
[1741621273275,0.063,123.72,123.71,0.28432314]
[1741621273789,0.0001,123.72,123.71,0.28432314]
[1741621273960,0.0001,123.72,123.71,20.1460484]
[1741621274158,0.0001,123.73,123.72,38.933972]
[1741621275173,0.0001,123.73,123.72,47.016672]
[1741621275368,6.5291,123.8,123.72,67.223572]
[1741621275563,0.063,123.82,123.78,18.933972]
[1741621275869,0.063,123.82,123.78,0.28432314]
[1741621276066,0.063,123.82,123.78,0.14216157]
[1741621277778,0.063,123.82,123.79,0.14216157]
[1741621278372,0.063,123.82,123.8,0.14216157]
[1741621278568,0.063,123.82,123.76,8.0799]
[1741621278773,0.063,123.82,123.77,0.14216157]
[1741621279089,0.063,123.82,123.77,18.933972]
[1741621279470,0.063,123.82,123.75,8.36502314]
[1741621280088,8.3728,123.81,123.74,0.28432314]
[1741621280572,8.3728,123.81,123.73,8.0816]
[1741621280573,8.3728,123.81,123.73,0.28432314]
[1741621280971,99.74964886,123.8,123.73,0.28432314]
[1741621281180,99.74964886,123.8,123.73,0.14216157]
[1741621281372,8.0781,123.79,123.73,0.14216157]
[1741621281906,8.0781,123.79,123.72,0.14216157]
[1741621281907,8.0781,123.79,123.72,8.36702314]
[1741621282591,8.0781,123.79,123.72,0.14216157]
[1741621283584,8.0781,123.79,123.73,0.14216157]
[1741621283993,8.0781,123.79,123.71,0.28432314]
[1741621284298,10.96,123.78,123.71,0.28432314]
[1741621285076,10.96,123.78,123.7,0.28432314]
[1741621285498,10.96,123.78,123.71,0.14216157]
[1741621285671,19.0391,123.78,123.71,0.14216157]
[1741621285881,10.96,123.78,123.72,0.14216157]
[1741621286480,19.0389,123.78,123.71,18.933972]
[1741621286697,19.0389,123.78,123.71,0.28432314]
[1741621286900,6.5804,123.74,123.66,0.28432314]
[1741621287103,2.1656,123.73,123.66,8.37092314]
[1741621287417,10.96,123.72,123.66,0.28432314]
[1741621287579,10.96,123.72,123.64,18.64964886]
[1741621287580,19.0431,123.72,123.64,48.44996157]
[1741621287898,19.0431,123.72,123.66,0.14216157]
[1741621287899,10.96,123.72,123.66,0.14216157]
[1741621288081,19.0429,123.72,123.66,0.14216157]
[1741621288901,19.0429,123.72,123.65,0.28432314]
[1741621289095,10.96,123.72,123.71,0.03]
[1741621289983,2.1656,123.73,123.71,0.03]
[1741621290199,10.248,123.73,123.71,0.03]
[1741621291390,30.4532,123.73,123.66,0.14216157]
[1741621291796,18.64964886,123.72,123.6,1.21293713]
[1741621291979,18.64964886,123.63,123.58,0.03]
[1741621292183,92.06,123.62,123.58,0.03]
[1741621292503,292.38964886,123.61,123.55,0.03]
[1741621293080,8.0906,123.6,123.55,0.03]
[1741621293303,28.3171,123.6,123.55,0.03]
[1741621294305,8.0906,123.6,123.55,0.03]
[1741621294805,200.7301,123.61,123.55,0.03]
[1741621295321,8.5681,123.64,123.55,18.963972]
[1741621295691,8.5681,123.64,123.57,0.28432314]
[1741621296395,16.6562,123.64,123.55,18.963972]
[1741621296598,18.64964886,123.63,123.55,0.31432314]
[1741621296795,10.96,123.62,123.55,0.31432314]
[1741621296992,10.96,123.62,123.55,0.03]
[1741621297194,8.0899,123.61,123.55,0.03]
[1741621297406,18.64964886,123.6,123.55,0.03]
[1741621297608,99.74964886,123.6,123.55,0.03]
[1741621298489,18.64964886,123.58,123.55,0.03]
[1741621298685,211.38964886,123.58,123.55,0.03]
[1741621298922,211.38964886,123.58,123.54,0.063]
[1741621298923,27.14574886,123.56,123.54,0.063]
[1741621299089,10.96,123.55,123.54,0.063]
[1741621299290,118.80344886,123.55,123.47,0.14216157]
[1741621299600,18.64964886,123.54,123.46,2.9041764]
[1741621299792,99.74964886,123.54,123.46,2.9041764]
[1741621300311,106.33137338,123.54,123.47,0.28432314]
[1741621300510,106.33137338,123.54,123.46,2.9041764]
[1741621301206,81.1,123.53,123.46,2.9041764]
[1741621301399,89.1951,123.53,123.46,2.9041764]
[1741621301900,89.1951,123.53,123.47,0.28432314]
[1741621302102,10.96,123.55,123.47,0.28432314]
[1741621302406,6.66031027,123.55,123.47,0.28432314]
[1741621302610,19.0542,123.55,123.47,0.28432314]
[1741621302994,18.64964886,123.54,123.47,0.28432314]
[1741621303220,25.86765173,123.55,123.47,0.28432314]
[1741621303390,25.86765173,123.55,123.46,2.9041764]
[1741621303391,20.0,123.51,123.46,2.9041764]
[1741621303993,20.0,123.51,123.47,0.28432314]
[1741621304208,20.0,123.5,123.46,2.9041764]
[1741621304401,30.96,123.49,123.46,2.9041764]
[1741621304716,10.96,123.49,123.46,2.9041764]
[1741621306192,8.0956,123.53,123.47,0.28432314]
[1741621306398,10.96,123.53,123.47,0.28432314]
[1741621306610,19.0553,123.53,123.47,0.28432314]
[1741621307801,0.15669946,123.48,123.47,8.38312314]
[1741621308200,0.15669946,123.48,123.47,27.032772]
[1741621308513,9.946e-05,123.48,123.47,27.032772]
[1741621308712,1.987e-05,123.5,123.49,0.28432314]
[1741621308918,1.987e-05,123.5,123.49,20.14806087]
[1741621309300,1.987e-05,123.5,123.49,28.24586087]
[1741621309508,1.987e-05,123.5,123.49,27.031772]
[1741621310325,0.16262455,123.55,123.52,20.28432314]
[1741621310326,8.644e-05,123.53,123.52,20.28432314]
[1741621310516,6.4645,123.65,123.54,0.28432314]
[1741621310717,6.197e-05,123.57,123.56,20.28432314]
[1741621311220,6.197e-05,123.57,123.56,0.28432314]
[1741621311406,6.197e-05,123.57,123.56,8.37752314]
[1741621311609,6.197e-05,123.57,123.56,27.027172]
[1741621312824,6.197e-05,123.57,123.56,8.37752314]
[1741621313423,0.06306197,123.57,123.56,8.37752314]
[1741621314126,0.06306197,123.57,123.56,0.28432314]
[1741621314829,0.06306197,123.57,123.56,8.37752314]
[1741621315037,0.06306197,123.57,123.56,69.84784478]
[1741621315410,0.06306197,123.57,123.56,61.75464478]
[1741621315612,61.53338361,123.57,123.52,61.47032164]
[1741621315910,61.53338361,123.57,123.52,61.75464478]
[1741621316109,0.06306197,123.57,123.55,8.0938]
[1741621316307,0.06306197,123.57,123.54,61.75464478]
[1741621316504,0.06306197,123.57,123.54,69.84894478]
[1741621316710,61.47032164,123.56,123.5,0.14216157]
[1741621316924,60.97032164,123.56,123.52,0.28432314]
[1741621317235,0.06306197,123.57,123.54,0.14216157]
[1741621317413,61.53338361,123.57,123.52,81.61248321]
[1741621317811,61.47032164,123.55,123.49,8.0978]
[1741621318037,72.43032164,123.54,123.5,0.28432314]
[1741621318245,69.56542164,123.53,123.5,0.28432314]
[1741621318419,61.47032164,123.52,123.47,61.50032164]
[1741621318624,61.47032164,123.52,123.48,0.14216157]
[1741621319450,61.47032164,123.49,123.47,0.03]
[1741621319633,61.47032164,123.51,123.47,0.03]
[1741621320132,61.47032164,123.5,123.47,0.03]
[1741621320319,61.47032164,123.49,123.47,0.03]
[1741621320640,69.56792164,123.5,123.47,0.03]
[1741621321142,61.47032164,123.49,123.47,0.03]
[1741621321636,69.56792164,123.5,123.47,0.03]
[1741621321834,8.0976,123.5,123.47,0.03]
[1741621322026,61.47032164,123.49,123.47,0.03]
[1741621322221,69.56872164,123.48,123.47,0.03]
[1741621322413,61.47032164,123.5,123.47,0.03]
[1741621322617,61.47032164,123.48,123.47,0.03]
[1741621323222,61.47032164,123.49,123.47,0.03]
[1741621323627,8.0973,123.5,123.46,2.9041764]
[1741621323628,142.58484328,123.48,123.46,2.9041764]
[1741621323835,61.47032164,123.47,123.46,2.9041764]
[1741621324037,19.6442,123.48,123.46,2.9041764]
[1741621324223,89.21302164,123.48,123.46,2.9041764]
[1741621324541,61.47032164,123.47,123.46,2.9041764]
[1741621324739,273.0799705,123.47,123.46,2.9041764]
[1741621325326,18.64964886,123.46,123.44,0.03]
[1741621325520,80.1199705,123.45,123.44,0.03]
[1741621325845,80.1199705,123.45,123.32,20.2722]
[1741621325846,20.0,123.41,123.32,20.2722]
[1741621326018,72.43032164,123.4,123.35,61.47032164]
[1741621326213,10.96,123.4,123.35,0.14216157]
[1741621326419,72.43032164,123.4,123.35,61.61248321]
[1741621326621,61.47032164,123.38,123.35,0.14216157]
[1741621326965,19.0638,123.4,123.36,0.14216157]
[1741621326966,72.43032164,123.4,123.36,0.14216157]
[1741621327256,61.47032164,123.39,123.34,0.03]
[1741621327415,61.47032164,123.37,123.34,0.03]
[1741621327621,61.47032164,123.36,123.34,0.03]
[1741621327856,0.16948993,123.37,123.34,0.03]
[1741621328043,61.47032164,123.35,123.34,0.03]
[1741621328756,88.2269705,123.35,123.34,0.03]
[1741621328938,61.47032164,123.29,123.22,8.1155]
[1741621329242,61.47032164,123.29,123.16,6.2711]
[1741621329243,61.47032164,123.26,123.16,6.2711]
[1741621329432,61.47032164,123.25,123.16,11.48892603]
[1741621329633,61.47032164,123.25,123.19,61.47032164]
[1741621329829,61.47032164,123.23,123.14,20.3009]
[1741621330035,10.96,123.24,123.21,11.0202764]
[1741621330237,10.96,123.24,123.21,2.9041764]
[1741621331054,61.47032164,123.23,123.21,2.9041764]
[1741621331235,10.96,123.24,123.21,2.9041764]
[1741621331641,10.96,123.24,123.21,72.49029804]
[1741621331833,10.96,123.24,123.22,0.28432314]
[1741621332030,61.47032164,123.25,123.21,11.0199764]
[1741621332426,10.96,123.26,123.23,61.75464478]
[1741621332644,8.2017,123.29,123.23,0.28432314]
[1741621332844,81.1,123.31,123.26,61.47032164]
[1741621332845,61.47032164,123.31,123.26,61.47032164]
[1741621333238,10.96,123.32,123.29,61.47032164]
[1741621333554,201.1774,123.34,123.28,0.28432314]
[1741621333741,193.14,123.34,123.31,61.47032164]
[1741621334127,193.14,123.34,123.32,0.28432314]
[1741621334330,193.14,123.34,123.3,61.47032164]
[1741621334539,193.14,123.34,123.31,0.28432314]
[1741621334747,0.16948993,123.37,123.33,61.47032164]
[1741621334952,0.16948993,123.37,123.34,61.47032164]
[1741621335132,61.47032164,123.35,123.31,0.28432314]
[1741621335328,61.47032164,123.34,123.26,8.1129]
[1741621335539,18.64964886,123.36,123.29,0.14216157]
[1741621335744,80.1199705,123.36,123.28,61.47032164]
[1741621336034,61.47032164,123.33,123.28,61.47032164]
[1741621336460,61.47032164,123.34,123.29,61.75464478]
[1741621336637,80.1199705,123.35,123.29,61.75464478]
[1741621336831,61.47032164,123.33,123.29,0.14216157]
[1741621337032,61.47032164,123.33,123.29,0.28432314]
[1741621337250,61.47032164,123.31,123.27,0.28432314]
[1741621337554,61.47032164,123.31,123.26,61.47032164]
[1741621337745,10.96,123.32,123.28,0.28432314]
[1741621337951,10.96,123.32,123.28,0.14216157]
[1741621338154,10.96,123.32,123.26,61.61248321]
[1741621338155,61.47032164,123.31,123.26,61.61248321]
[1741621338338,61.47032164,123.3,123.26,0.28432314]
[1741621338543,61.47032164,123.3,123.25,0.28432314]
[1741621338784,91.0799705,123.32,123.27,61.47032164]
[1741621339066,10.96,123.32,123.27,61.47032164]
[1741621339455,72.43032164,123.32,123.27,61.47032164]
[1741621339965,72.43032164,123.34,123.29,61.47032164]
[1741621340560,80.60112164,123.34,123.29,61.47032164]
[1741621340768,72.49332164,123.34,123.3,0.28432314]
[1741621341064,80.60102164,123.34,123.29,61.47032164]
[1741621341246,72.49332164,123.34,123.3,0.28432314]
[1741621341455,11.023,123.34,123.31,0.14216157]
[1741621341638,0.063,123.34,123.33,61.47032164]
[1741621341842,0.063,123.34,123.32,61.47032164]
[1741621342068,0.063,123.34,123.3,0.28432314]
[1741621342069,69.64102164,123.34,123.3,0.28432314]
[1741621342255,61.47032164,123.33,123.28,0.28432314]
[1741621342461,69.57892164,123.33,123.28,0.28432314]
[1741621342678,61.53332164,123.34,123.29,61.47032164]
[1741621342980,0.063,123.34,123.32,61.47032164]
[1741621343363,0.063,123.34,123.33,61.75464478]
[1741621344649,0.063,123.34,123.33,0.28432314]
[1741621344882,0.063,123.34,123.33,69.86294478]
[1741621346484,0.063,123.34,123.31,0.28432314]
[1741621346786,61.53332164,123.34,123.3,0.28432314]
[1741621346987,61.53332164,123.34,123.29,61.47032164]
[1741621347147,61.53332164,123.34,123.29,61.75464478]
[1741621347647,61.53332164,123.34,123.27,8.1122]
[1741621347648,0.15399919,123.3,123.28,0.28432314]
[1741621347960,0.15399919,123.3,123.29,80.40429364]
[1741621348475,0.15399919,123.3,123.29,100.40429364]
[1741621348680,0.15399919,123.3,123.29,108.51519364]
[1741621350372,0.15399919,123.3,123.29,89.86554478]
[1741621350979,0.15399919,123.3,123.29,108.51519364]
[1741621351479,9.919e-05,123.3,123.29,108.51519364]
[1741621351644,0.17095361,123.32,123.3,0.28432314]
[1741621351851,0.17095361,123.32,123.31,80.40429364]
[1741621352284,0.17095361,123.32,123.31,61.75464478]
[1741621352580,0.17095361,123.32,123.31,69.86424478]
[1741621353151,0.17095361,123.32,123.3,61.47032164]
[1741621353365,0.17095361,123.32,123.3,61.75464478]
[1741621353694,0.17095361,123.32,123.31,61.75464478]
[1741621354168,0.17095361,123.32,123.31,0.28432314]
[1741621354486,0.17095361,123.32,123.31,61.75464478]
[1741621354683,0.17095361,123.32,123.31,69.86424478]
[1741621355381,0.17095361,123.32,123.31,61.75464478]
[1741621355565,0.17095361,123.32,123.31,69.86424478]
[1741621357566,0.17095361,123.32,123.31,0.28432314]
[1741621357980,0.17095361,123.32,123.31,8.39392314]
[1741621358287,0.17095361,123.32,123.31,69.86424478]
[1741621359687,0.17095361,123.32,123.31,61.75464478]
[1741621359987,0.17095361,123.32,123.31,69.86424478]
[1741621360996,5.361e-05,123.32,123.31,88.51389364]
[1741621361690,0.17777819,123.36,123.35,38.933972]
[1741621361691,6.979e-05,123.36,123.35,38.933972]
[1741621361879,6.979e-05,123.36,123.35,161.87461528]
[1741621362494,6.317e-05,123.37,123.35,161.87461528]
[1741621362669,6.317e-05,123.37,123.36,123.22496642]
[1741621363080,6.317e-05,123.37,123.36,131.33126642]
[1741621363386,6.317e-05,123.37,123.36,69.86094478]
[1741621364085,6.317e-05,123.37,123.36,0.28432314]
[1741621364408,6.317e-05,123.37,123.36,61.75464478]
[1741621364567,2.261e-05,123.38,123.36,141.87461528]
[1741621364893,2.261e-05,123.38,123.37,80.40429364]
[1741621365079,2.261e-05,123.38,123.37,88.50989364]
[1741621365972,3.103e-05,123.39,123.38,0.28432314]
[1741621366182,3.103e-05,123.39,123.38,80.40429364]
[1741621366393,3.103e-05,123.39,123.38,61.75464478]
[1741621366975,3.103e-05,123.39,123.35,20.0]
[1741621367287,3.103e-05,123.39,123.37,0.28432314]
[1741621367490,3.103e-05,123.39,123.38,61.47032164]
[1741621367679,0.15150498,123.39,123.38,61.75464478]
[1741621368890,0.15147395,123.39,123.38,61.75464478]
[1741621369411,0.15147395,123.39,123.38,69.85964478]
[1741621370908,0.15147395,123.39,123.3,61.50032164]
[1741621371199,61.47032164,123.37,123.32,0.14216157]
[1741621371399,69.57622164,123.37,123.32,69.72098321]
[1741621371605,61.47032164,123.37,123.32,69.72098321]
[1741621371812,88.2251705,123.38,123.33,61.47032164]
[1741621371978,61.47032164,123.36,123.3,0.03]
[1741621372175,61.47032164,123.36,123.31,61.47032164]
[1741621372377,81.1,123.37,123.3,61.50032164]
[1741621372378,61.47032164,123.35,123.3,61.50032164]
[1741621372578,142.57032164,123.37,123.32,61.75464478]
[1741621372780,61.47032164,123.35,123.3,61.50032164]
[1741621372976,61.47032164,123.32,123.3,0.03]
[1741621373180,72.39032164,123.32,123.3,0.03]
[1741621373390,8.1096,123.31,123.3,0.03]
[1741621373588,10.92,123.32,123.3,0.03]
[1741621373996,19.029,123.32,123.3,0.03]
[1741621374192,80.49932164,123.32,123.3,0.03]
[1741621374394,88.3143705,123.31,123.3,0.03]
[1741621374594,8.1944,123.31,123.3,0.03]
[1741621375992,16.304,123.31,123.3,0.03]
[1741621376192,69.66472164,123.31,123.3,0.03]
[1741621376407,8.1944,123.31,123.3,0.03]
[1741621378012,10.92,123.33,123.3,0.03]
[1741621378303,72.39032164,123.33,123.3,0.03]
[1741621378699,10.92,123.33,123.3,0.03]
[1741621378886,72.39032164,123.33,123.3,0.03]
[1741621379603,8.1089,123.32,123.3,0.03]
[1741621379906,10.92,123.33,123.3,0.03]
[1741621380298,61.47032164,123.32,123.3,0.03]
[1741621380699,19.0285,123.33,123.3,0.03]
[1741621381185,61.47032164,123.32,123.3,0.03]
[1741621381400,88.2295705,123.31,123.3,0.03]
[1741621382414,61.47032164,123.31,123.3,0.03]
[1741621382619,20.0,123.31,123.3,0.03]
[1741621382788,111.0399705,123.31,123.3,0.03]
[1741621383602,119.1495705,123.31,123.3,0.03]
[1741621384116,10.92,123.31,123.3,0.03]
[1741621384414,81.1,123.32,123.3,0.03]
[1741621384586,52.09740598,123.34,123.3,0.03]
[1741621384786,41.17740598,123.33,123.3,0.03]
[1741621385009,59.82705484,123.31,123.3,0.03]
[1741621385311,201.2872,123.35,123.3,41.34956755]
[1741621385490,193.18,123.35,123.31,41.17740598]
[1741621385692,212.2072,123.35,123.31,41.17740598]
[1741621385888,41.17740598,123.33,123.3,0.03]
[1741621386200,18.64964886,123.34,123.3,0.03]
[1741621386390,59.82705484,123.34,123.3,0.03]
[1741621386586,41.17740598,123.31,123.3,0.03]
[1741621386812,59.82705484,123.31,123.3,0.03]
[1741621387042,313.5747,123.35,123.3,0.03]
[1741621387191,59.82705484,123.34,123.3,0.03]
[1741621387594,0.15336062,123.31,123.3,0.03]
[1741621387899,0.15336062,123.31,123.3,41.20740598]
[1741621388101,0.15336062,123.31,123.3,0.03]
[1741621388314,0.15336062,123.31,123.3,41.49172912]
[1741621388715,0.15336062,123.31,123.3,82.6691351]
[1741621388925,0.15336062,123.31,123.3,101.31878396]
[1741621389539,0.15336062,123.31,123.3,49.60202912]
[1741621390039,0.15336062,123.31,123.3,109.42908396]
[1741621390199,0.15622885,123.33,123.32,38.933972]
[1741621390401,6.244e-05,123.34,123.33,18.933972]
[1741621390604,0.16552762,123.38,123.35,38.933972]
[1741621390826,3.645e-05,123.36,123.35,38.933972]
[1741621391125,5.2e-07,123.37,123.36,0.28432314]
[1741621391304,2.814e-05,123.38,123.36,143.48808473]
[1741621391502,2.814e-05,123.38,123.37,70.05928569]
[1741621392011,9.626e-05,123.39,123.38,0.28432314]
[1741621392211,9.626e-05,123.39,123.38,80.60333455]
[1741621393111,0.063,123.47,123.43,18.933972]
[1741621393308,61.73236255,123.47,123.37,39.2898]
[1741621393515,61.66936255,123.46,123.41,69.77196255]
[1741621393924,0.063,123.47,123.43,61.66936255]
[1741621394318,0.063,123.47,123.44,61.66936255]
[1741621394520,0.063,123.47,123.45,61.66936255]
[1741621394711,0.063,123.47,123.46,61.95368569]
[1741621394911,0.063,123.47,123.46,0.28432314]
[1741621395119,0.063,123.47,123.46,61.95368569]
[1741621395623,0.063,123.47,123.46,70.05338569]
[1741621395805,0.063,123.47,123.42,20.0]
[1741621396005,0.063,123.47,123.43,61.95368569]
[1741621396227,61.66936255,123.46,123.41,61.95368569]
[1741621396528,61.66936255,123.44,123.39,61.66936255]
[1741621396823,61.66936255,123.43,123.38,61.95368569]
[1741621397030,68.20086255,123.44,123.39,61.66936255]
[1741621397325,6.5315,123.44,123.41,61.66936255]
[1741621397625,10.9,123.45,123.43,0.14216157]
[1741621397811,8.1626,123.47,123.43,61.66936255]
[1741621398125,61.66936255,123.46,123.41,61.81152412]
[1741621398426,61.66936255,123.43,123.38,61.66936255]
[1741621398632,61.66936255,123.42,123.37,61.95368569]
[1741621399006,61.66936255,123.42,123.37,61.81152412]
[1741621399418,61.66936255,123.42,123.38,61.66936255]
[1741621399618,88.42071141,123.43,123.38,61.66936255]
[1741621400125,80.31901141,123.41,123.34,0.14216157]
[1741621400328,61.66936255,123.38,123.33,0.14216157]
[1741621400523,61.66936255,123.38,123.3,61.69936255]
[1741621400524,61.66936255,123.36,123.3,0.03]
[1741621400708,61.66936255,123.36,123.31,61.66936255]
[1741621401137,61.66936255,123.36,123.3,0.31432314]
[1741621401138,20.0,123.34,123.3,0.03]
[1741621401429,61.66936255,123.31,123.3,0.03]
[1741621401636,99.32861141,123.31,123.3,0.03]
[1741621402018,18.64964886,123.3,123.26,0.03]
[1741621402218,61.66936255,123.28,123.26,0.03]
[1741621402936,39.2837,123.31,123.27,61.66936255]
[1741621402937,19.0097,123.31,123.27,61.66936255]
[1741621403143,80.67906255,123.31,123.26,61.69936255]
[1741621403317,10.9,123.31,123.27,61.66936255]
[1741621403943,10.9,123.31,123.29,61.66936255]
[1741621404322,10.9,123.31,123.28,61.66936255]
[1741621404551,10.9,123.31,123.27,61.66936255]
[1741621404724,10.9,123.31,123.26,0.03]
[1741621405052,61.66936255,123.29,123.26,0.03]
[1741621405356,61.66936255,123.3,123.26,0.03]
[1741621405518,72.56936255,123.31,123.26,61.69936255]
[1741621405881,72.56936255,123.31,123.26,61.84152412]
[1741621406161,61.66936255,123.3,123.26,0.03]
[1741621406461,72.56936255,123.31,123.26,61.69936255]
[1741621406768,6.4327,123.32,123.29,61.66936255]
[1741621407257,63.62616255,123.33,123.29,0.28432314]
[1741621407453,12.8568,123.33,123.29,61.66936255]
[1741621407644,12.8568,123.33,123.27,0.14216157]
[1741621407645,0.17825569,123.29,123.28,61.95368569]
[1741621408232,0.17825569,123.29,123.28,70.06528569]
[1741621408434,0.17825569,123.29,123.28,0.28432314]
[1741621408747,0.17825569,123.29,123.27,0.14216157]
[1741621408945,0.17825569,123.29,123.27,61.95368569]
[1741621409654,0.17825569,123.29,123.28,61.66936255]
[1741621409960,0.17825569,123.29,123.28,70.06528569]
[1741621410455,0.17825569,123.29,123.28,0.28432314]
[1741621410662,0.17825569,123.29,123.28,61.95368569]
[1741621410946,0.17825569,123.29,123.28,70.06528569]
[1741621412347,5.569e-05,123.29,123.28,88.71493455]
[1741621412731,5.518e-05,123.31,123.29,18.933972]
[1741621413045,6.038e-05,123.32,123.31,0.28432314]
[1741621413233,6.038e-05,123.32,123.31,61.95368569]
[1741621413551,6.038e-05,123.32,123.31,0.28432314]
[1741621413953,6.038e-05,123.32,123.3,61.66936255]
[1741621414159,6.038e-05,123.32,123.3,0.14216157]
[1741621414655,6.038e-05,123.32,123.28,61.66936255]
[1741621414851,6.038e-05,123.32,123.29,61.66936255]
[1741621415059,6.038e-05,123.32,123.28,61.81152412]
[1741621415553,6.038e-05,123.32,123.29,0.14216157]
[1741621415758,6.038e-05,123.32,123.3,61.66936255]
[1741621415934,6.038e-05,123.32,123.31,61.95368569]
[1741621416139,6.038e-05,123.32,123.31,88.71293455]
[1741621416733,6.038e-05,123.32,123.31,89.92893195]
[1741621416935,5.471e-05,123.33,123.32,0.28432314]
[1741621417258,5.471e-05,123.33,123.32,61.95368569]
[1741621417647,5.471e-05,123.33,123.32,0.28432314]
[1741621417958,5.471e-05,123.33,123.32,61.81152412]
[1741621418171,5.471e-05,123.33,123.32,70.06258569]
[1741621418336,5.471e-05,123.33,123.29,0.28432314]
[1741621418655,5.471e-05,123.33,123.29,61.95368569]
[1741621419333,61.66941726,123.33,123.29,0.28432314]
[1741621419765,61.66936255,123.3,123.27,0.03]
[1741621420072,8.1109,123.29,123.27,0.03]
[1741621420253,72.54936255,123.28,123.27,0.03]
[1741621420745,8.1924,123.27,123.26,0.03]
[1741621420938,69.86176255,123.27,123.26,0.03]
[1741621421267,8.1924,123.27,123.26,0.03]
[1741621421657,1.772,123.27,123.26,0.03]
[1741621422963,17.3072,123.3,123.26,61.98368569]